bitfinex-derivatives/quotes_ETHF0:USTF0_20250505
["timestamp","ask_amount","ask_price","bid_price","bid_amount"]
[1746473571143,4.30673,1820.1,1820.0,1.09895]
[1746473571343,4.30673,1820.1,1820.0,2.76665]
[1746473571545,3.522,1820.4,1820.0,4.8755]
[1746473571842,1.09876,1820.4,1820.3,1.09874]
[1746473572042,1.0988,1820.3,1820.2,1.09878]
[1746473572238,1.0988,1820.3,1820.2,4.35418]
[1746473573145,1.0988,1820.3,1820.2,8.08618]
[1746473573943,1.09875,1820.4,1820.3,1.09871]
[1746473574139,1.09875,1820.4,1820.3,6.45791]
[1746473575146,1.09875,1820.4,1820.3,6.45792]
[1746473575147,1.09871,1820.4,1820.3,6.45792]
[1746473575943,1.09871,1820.4,1820.3,5.3592]
[1746473577041,1.09871,1820.4,1820.3,6.45797]
[1746473577748,1.09871,1820.4,1820.3,5.3592]
[1746473577949,1.09871,1820.4,1820.3,6.45797]
[1746473579346,1.09871,1820.4,1820.3,5.3592]
[1746473579553,2.80651,1820.4,1820.3,3.732]
[1746473579739,2.80651,1820.4,1820.3,5.3618]
[1746473580451,2.80651,1820.4,1820.3,3.732]
[1746473583351,2.80651,1820.4,1820.3,5.3496]
[1746473585559,2.80651,1820.4,1820.3,3.732]
[1746473594357,1.09877,1820.3,1820.2,1.5946]
[1746473594556,7.69107,1820.3,1820.2,1.5946]
[1746473595257,7.69107,1820.3,1820.2,5.3266]
[1746473596358,7.69107,1820.3,1820.2,3.732]
[1746473597167,1.09895,1820.0,1819.9,40.89999924]
[1746473597368,4.30675,1820.0,1819.9,40.89999924]
[1746473597769,6.83985,1820.0,1819.9,40.89999924]
[1746473598265,6.83985,1820.0,1819.9,44.63199924]
[1746473600172,6.83985,1820.0,1819.9,40.89999924]
[1746473600874,5.99255,1820.0,1819.9,40.89999924]
[1746473602175,5.99255,1820.0,1819.9,0.09999924]
[1746473603068,1.09956,1819.0,1818.8,10.91176272]
[1746473603275,1.09962,1818.9,1818.8,1.6553]
[1746473603672,4.30739,1819.0,1818.8,1.6553]
[1746473603976,1.09954,1819.1,1818.9,1.09962]
[1746473604174,1.09954,1819.1,1818.9,4.83162]
[1746473604367,1.09954,1819.1,1819.0,1.5689]
[1746473604769,4.30728,1819.2,1819.0,2.66846]
[1746473605068,4.30728,1819.2,1819.0,6.40046]
[1746473605269,4.30728,1819.2,1819.1,1.7289]
[1746473605577,4.30728,1819.2,1819.1,2.82839]
[1746473605773,3.2078,1819.2,1819.1,7.82839]
[1746473606274,4.30723,1819.2,1819.1,1.7289]
[1746473608279,4.30723,1819.2,1819.1,2.82839]
[1746473609680,3.2078,1819.2,1819.1,2.82839]
[1746473610277,4.30723,1819.2,1819.1,2.82839]
[1746473611579,3.2078,1819.2,1819.1,2.82839]
[1746473611977,4.30723,1819.2,1819.1,2.82839]
[1746473612272,3.2078,1819.2,1819.1,2.82839]
[1746473612776,4.30723,1819.2,1819.1,2.82839]
[1746473613384,3.2078,1819.2,1819.1,2.82839]
[1746473618582,3.2078,1819.2,1819.1,3.62559]
[1746473618881,3.2078,1819.2,1819.1,44.42559]
[1746473619683,4.30714,1819.4,1819.2,1.09943]
[1746473619984,3.2078,1819.4,1819.3,3.53077]
[1746473621287,3.2078,1819.4,1819.3,7.26277]
[1746473631700,0.1,1819.5,1819.4,1.09931]
[1746473631905,0.1,1819.5,1819.4,3.55991]
[1746473632094,0.1,1819.5,1819.4,7.29191]
[1746473632696,0.1,1819.5,1819.4,48.09191]
[1746473632891,1.19925,1819.5,1819.4,48.09191]
[1746473633095,0.1,1819.5,1819.4,48.09191]
[1746473634996,5.1,1819.5,1819.4,7.29191]
[1746473635201,9.40705,1819.5,1819.4,3.732]
[1746473635600,11.08205,1819.5,1819.4,3.732]
[1746473635895,6.08205,1819.5,1819.4,4.83131]
[1746473636100,11.08205,1819.5,1819.4,4.83131]
[1746473636603,6.08205,1819.5,1819.4,4.83131]
[1746473636904,6.08205,1819.5,1819.4,3.732]
[1746473639504,6.08205,1819.5,1819.4,4.83131]
[1746473640201,0.1,1819.5,1819.4,4.83131]
[1746473640405,0.1,1819.5,1819.4,6.54711]
[1746473641104,1.19925,1819.5,1819.4,6.54711]
[1746473641606,1.19925,1819.5,1819.4,4.83131]
[1746473642893,2.88945,1819.5,1819.4,4.83131]
[1746473644005,2.88945,1819.5,1819.4,3.732]
[1746473644306,2.88945,1819.5,1819.4,4.83131]
[1746473645111,2.88945,1819.5,1819.4,3.732]
[1746473645301,6.09725,1819.5,1819.4,4.83131]
[1746473645499,11.09725,1819.5,1819.4,3.732]
[1746473646006,14.7336117,1819.5,1819.4,3.732]
[1746473646606,9.7336117,1819.5,1819.4,3.732]
[1746473649211,13.3086117,1819.5,1819.4,3.732]
[1746473649905,17.64552276,1819.5,1819.4,3.732]
[1746473651112,1.09943,1819.2,1819.1,44.41606]
[1746473651614,1.09943,1819.2,1819.1,40.8]
[1746473651812,2.66093,1819.2,1819.1,40.8]
[1746473653115,1.09949,1819.1,1819.0,3.732]
[1746473653319,7.58059,1819.1,1819.0,3.732]
[1746473656813,15.55386276,1819.1,1819.0,3.732]
[1746473659212,1.0998,1818.6,1818.5,0.8137]
[1746473660111,1.0998,1818.6,1818.5,4.5457]
[1746473660505,2.6962,1818.6,1818.5,6.1813]
[1746473661110,1.0998,1818.6,1818.5,6.1813]
[1746473662615,4.30756,1818.7,1818.6,1.0998]
[1746473662815,4.30756,1818.7,1818.6,2.7354]
[1746473663114,3.2078,1818.7,1818.6,7.7354]
[1746473663315,1.09964,1818.9,1818.7,2.74935]
[1746473663613,1.09964,1818.9,1818.8,0.7895]
[1746473663816,1.09964,1818.9,1818.8,44.0602]
[1746473664114,1.09964,1818.9,1818.8,47.7922]
[1746473664410,7.27215389,1818.9,1818.8,57.09962]
[1746473665313,7.27215389,1818.9,1818.8,53.89182]
[1746473665507,8.37177389,1818.9,1818.8,45.63162]
[1746473665709,8.37177389,1818.9,1818.8,45.63168]
[1746473666215,8.37177389,1818.9,1818.8,47.35948]
[1746473666813,8.37177389,1818.9,1818.8,46.2598]
[1746473667014,8.37177389,1818.9,1818.8,47.35948]
[1746473667314,8.37177389,1818.9,1818.8,46.2598]
[1746473667712,8.37177389,1818.9,1818.8,47.35948]
[1746473668513,1.09962,1818.9,1818.8,47.35948]
[1746473669017,1.09962,1818.9,1818.8,46.2598]
[1746473669211,1.09962,1818.9,1818.8,47.35948]
[1746473671210,1.0996,1819.0,1818.9,1.09957]
[1746473671410,1.0996,1819.0,1818.9,2.71277]
[1746473671713,4.30735,1819.1,1819.0,1.09956]
[1746473671918,7.93583446,1819.1,1819.0,3.50456]
[1746473672115,7.93583446,1819.1,1819.0,7.23656]
[1746473673118,7.93583446,1819.1,1819.0,6.137]
[1746473673620,7.93583446,1819.1,1819.0,7.23656]
[1746473674324,7.93583446,1819.1,1819.0,6.137]
[1746473674620,4.72803446,1819.1,1819.0,7.23656]
[1746473674918,4.72803446,1819.1,1819.0,6.137]
[1746473675218,1.09955,1819.1,1819.0,7.23656]
[1746473682721,2.71825,1819.1,1819.0,7.23656]
[1746473683216,14.49205,1819.1,1819.0,3.732]
[1746473683616,9.49205,1819.1,1819.0,3.732]
[1746473683824,5.92605,1819.1,1819.0,3.732]
[1746473684321,5.92605,1819.1,1819.0,5.3615]
[1746473684523,1.09955,1819.1,1819.0,6.46106]
[1746473684824,1.09955,1819.1,1819.0,5.3615]
[1746473686323,4.30735,1819.1,1819.0,5.3615]
[1746473687522,6.01145,1819.1,1819.0,5.3615]
[1746473689126,6.01145,1819.1,1819.0,3.732]
[1746473690919,2.80365,1819.1,1819.0,3.732]
[1746473691121,2.80365,1819.1,1819.0,5.3614]
[1746473691720,6.01145,1819.1,1819.0,5.3614]
[1746473692433,2.80365,1819.1,1819.0,5.3614]
[1746473692620,6.01145,1819.1,1819.0,5.3614]
[1746473693029,10.34110136,1819.1,1819.0,5.3614]
[1746473696633,12.15534359,1819.1,1819.0,5.3614]
[1746473697040,12.15534359,1819.1,1819.0,3.732]
[1746473700335,17.15534359,1819.1,1819.0,3.732]
[1746473701338,1.09968,1818.8,1818.7,40.8]
[1746473701538,4.30748,1818.8,1818.7,40.8]
[1746473701931,6.03728,1818.8,1818.7,40.8]
[1746473702127,6.03728,1818.8,1818.7,44.532]
[1746473703834,12.18117359,1818.8,1818.7,44.532]
[1746473704942,10.45137359,1818.8,1818.7,45.63174]
[1746473705239,10.45137359,1818.8,1818.7,47.27284]
[1746473707243,9.35169359,1818.8,1818.7,47.27284]
[1746473707643,4.30748,1818.8,1818.7,47.27284]
[1746473708841,3.2078,1818.8,1818.7,47.27284]
[1746473709139,4.73949545,1818.9,1818.8,1.09968]
[1746473709340,4.73949545,1818.9,1818.8,3.53368]
[1746473709644,3.63983545,1818.9,1818.8,3.53368]
[1746473710144,3.63983545,1818.9,1818.8,7.26568]
[1746473710645,4.73945545,1818.9,1818.8,7.26568]
[1746473710842,3.63983545,1818.9,1818.8,7.26568]
[1746473716243,3.63983545,1819.1,1818.8,7.26568]
[1746473716440,3.63983545,1819.1,1819.0,1.09956]
[1746473717149,3.63983545,1819.1,1819.0,4.83156]
[1746473717946,3.63983545,1819.1,1819.0,6.39686]
[1746473719555,3.63983545,1819.3,1819.2,1.09943]
[1746473719842,3.63983545,1819.3,1819.2,4.65743]
[1746473720049,3.63983545,1819.3,1819.2,8.38943]
[1746473720248,3.63983545,1819.3,1819.2,10.08093]
[1746473724453,9.62322545,1819.5,1819.4,1.09931]
[1746473725046,9.62322545,1819.5,1819.4,5.63431]
[1746473725453,8.04692545,1819.5,1819.4,5.63431]
[1746473727364,6.94763545,1819.5,1819.4,5.63431]
[1746473728056,3.73983545,1819.5,1819.4,5.63431]
[1746473728257,3.73983545,1819.5,1819.4,7.28941]
[1746473728760,0.1,1819.5,1819.4,7.28941]
[1746473730761,1.7989,1819.5,1819.4,7.28941]
[1746473731862,2.89815,1819.5,1819.4,4.83131]
[1746473732165,0.1,1819.5,1819.4,4.83131]
[1746473732554,0.1,1819.5,1819.4,6.52511]
[1746473740865,1.8229,1819.5,1819.4,6.52511]
[1746473744969,0.1,1819.5,1819.4,6.52511]
[1746473759877,0.848,1819.7,1819.6,1.09919]
[1746473760066,2.5066,1819.7,1819.6,1.09919]
[1746473760579,2.5066,1819.7,1819.6,43.56419]
[1746473761177,1.6586,1819.7,1819.6,43.56419]
[1746473762079,1.6586,1819.7,1819.6,46.77199]
[1746473763373,10.75656214,1819.8,1819.7,1.09913]
[1746473763783,12.37976214,1819.8,1819.7,2.69873]
[1746473764281,12.37976214,1819.8,1819.7,47.23073]
[1746473764583,3.2972,1819.8,1819.7,47.23073]
[1746473765381,4.39627,1819.8,1819.7,47.23073]
[1746473765778,4.39627,1819.8,1819.7,44.532]
[1746473765983,9.39627,1819.8,1819.7,45.63113]
[1746473766280,4.39627,1819.8,1819.7,45.63113]
[1746473768485,10.53990502,1819.8,1819.7,45.63113]
[1746473770093,10.53990502,1819.8,1819.7,4.83113]
[1746473770298,15.53990502,1819.8,1819.7,2.3499]
[1746473771294,1.09931,1819.4,1819.3,40.8]
[1746473771495,4.30711,1819.4,1819.3,40.8]
[1746473772297,5.89031,1819.4,1819.3,45.63137]
[1746473773494,1.5832,1819.4,1819.3,45.63137]
[1746473774191,1.5832,1819.4,1819.3,47.21397]
[1746473774896,8.00244367,1819.4,1819.3,47.21397]
[1746473775590,8.00244367,1819.4,1819.3,50.42177]
[1746473775991,8.00244367,1819.4,1819.3,47.21397]
[1746473777193,3.56776,1819.5,1819.4,1.09931]
[1746473777404,2.71161,1819.4,1819.3,45.63137]
[1746473777593,3.54021,1819.4,1819.3,45.63137]
[1746473778293,2.4409,1819.4,1819.3,45.63137]
[1746473778799,2.4409,1819.4,1819.3,48.19597]
[1746473779800,1.6123,1819.4,1819.3,51.40377]
[1746473780000,5.55444837,1819.6,1819.5,1.09925]
[1746473780303,7.92104837,1819.6,1819.5,4.83125]
[1746473780800,7.92104837,1819.6,1819.5,6.43735]
[1746473781807,8.94275256,1819.6,1819.5,6.43735]
[1746473785201,7.84356256,1819.6,1819.5,6.43735]
[1746473785407,5.47696256,1819.6,1819.5,18.17915]
[1746473785607,5.47696256,1819.6,1819.5,13.17915]
[1746473785806,3.64975034,1819.7,1819.6,1.09919]
[1746473786018,3.64975034,1819.7,1819.6,3.67709]
[1746473791312,1.6886,1819.9,1819.8,1.09907]
[1746473792013,2.78761,1819.9,1819.8,1.09907]
[1746473792310,2.78761,1819.9,1819.8,4.83107]
[1746473793215,1.6886,1819.9,1819.8,4.83107]
[1746473794415,2.78761,1819.9,1819.8,4.83107]
[1746473794715,1.6886,1819.9,1819.8,4.83107]
[1746473795015,2.78761,1819.9,1819.8,4.83107]
[1746473795413,1.6886,1819.9,1819.8,4.83107]
[1746473798115,1.6886,1819.9,1819.8,6.41137]
[1746473804822,6.39080034,1820.1,1820.0,1.09895]
[1746473805324,5.29185034,1820.1,1820.0,1.09895]
[1746473805617,6.39074034,1820.1,1820.0,1.09895]
[1746473806124,6.39074034,1820.1,1820.0,4.83095]
[1746473806323,8.06704034,1820.1,1820.0,4.83095]
[1746473807120,4.41729,1820.1,1820.0,4.83095]
[1746473807623,3.3184,1820.1,1820.0,4.83095]
[1746473807819,4.41729,1820.1,1820.0,4.83095]
[1746473810522,3.3184,1820.1,1820.0,4.83095]
[1746473811123,2.477,1820.1,1820.0,4.83095]
[1746473811423,2.477,1820.1,1820.0,6.52495]
[1746473811626,3.57589,1820.1,1820.0,6.52495]
[1746473813720,2.477,1820.1,1820.0,6.52495]
[1746473814030,3.57589,1820.1,1820.0,6.52495]
[1746473814421,2.477,1820.1,1820.0,6.52495]
[1746473815329,3.57589,1820.1,1820.0,6.52495]
[1746473817126,2.477,1820.1,1820.0,6.52495]
[1746473817332,3.57589,1820.1,1820.0,6.52495]
[1746473817526,2.477,1820.1,1820.0,6.52495]
[1746473818125,3.57589,1820.1,1820.0,6.52495]
[1746473818323,2.477,1820.1,1820.0,6.52495]
[1746473819535,3.57589,1820.1,1820.0,6.52495]
[1746473820735,2.477,1820.1,1820.0,6.52495]
[1746473821131,3.57589,1820.1,1820.0,6.52495]
[1746473821434,0.8007,1820.1,1820.0,6.52495]
[1746473821734,0.8007,1820.1,1820.0,7.30575]
[1746473825634,1.89959,1820.1,1820.0,7.30575]
[1746473826434,1.89959,1820.1,1820.0,5.426]
[1746473826740,8.58479,1820.1,1820.0,3.732]
[1746473827133,1.09919,1819.6,1819.4,8.18311369]
[1746473827332,0.8136,1819.5,1819.4,8.44587369]
[1746473827529,3.3163,1819.5,1819.4,10.02207369]
[1746473828137,3.3163,1819.5,1819.4,13.75407369]
[1746473828732,3.3163,1819.5,1819.4,6.40746]
[1746473829443,3.64975034,1819.6,1819.5,1.09925]
[1746473829641,3.64975034,1819.6,1819.5,3.50095]
[1746473829836,5.47696256,1819.7,1819.6,1.09919]
[1746473830040,5.47696256,1819.7,1819.6,10.26249]
[1746473831736,5.47696256,1819.7,1819.6,7.05469]
[1746473832241,6.57609256,1819.7,1819.6,7.05469]
[1746473832431,1.703,1819.7,1819.6,7.05469]
[1746473832927,2.80213,1819.7,1819.6,7.05469]
[1746473833641,2.80213,1819.7,1819.6,6.22229]
[1746473833941,2.80213,1819.7,1819.6,4.63219]
[1746473834341,2.80213,1819.7,1819.6,3.533]
[1746473834640,2.80213,1819.7,1819.6,4.63219]
[1746473834842,2.80213,1819.7,1819.6,3.533]
[1746473835040,2.80213,1819.7,1819.5,6.40793]
[1746473835041,1.09919,1819.6,1819.5,6.40793]
[1746473835242,2.70949,1819.6,1819.5,6.40793]
[1746473835642,2.70949,1819.6,1819.5,4.83123]
[1746473835941,5.91729,1819.6,1819.5,4.83125]
[1746473836143,2.70949,1819.6,1819.5,4.83125]
[1746473837042,5.91729,1819.6,1819.5,4.83125]
[1746473837738,2.70949,1819.6,1819.5,4.83125]
[1746473838046,5.95737,1819.8,1819.7,1.09913]
[1746473838244,7.63777,1819.8,1819.7,1.09913]
[1746473839047,14.93922179,1819.8,1819.7,1.09913]
[1746473839238,14.93922179,1819.8,1819.7,4.83113]
[1746473841545,12.44092179,1819.8,1819.7,4.83113]
[1746473841745,14.07722179,1819.8,1819.7,4.83113]
[1746473841943,6.77577,1819.8,1819.7,5.66903]
[1746473842147,12.24957654,1819.8,1819.7,5.66903]
[1746473842442,12.24957654,1819.8,1819.7,7.24023]
[1746473844641,9.51420654,1819.8,1819.7,7.24023]
[1746473845143,10.61327654,1819.8,1819.7,7.24023]
[1746473845338,7.40547654,1819.8,1819.7,7.24023]
[1746473845747,6.30640654,1819.8,1819.7,7.24023]
[1746473846134,7.40547654,1819.8,1819.7,7.24023]
[1746473846337,6.30640654,1819.8,1819.7,7.24023]
[1746473846647,5.47380654,1819.8,1819.7,7.24023]
[1746473846840,6.57287654,1819.8,1819.7,7.24023]
[1746473847146,5.47380654,1819.8,1819.7,7.24023]
[1746473847648,6.57287654,1819.8,1819.7,7.24023]
[1746473848753,5.47380654,1819.8,1819.7,7.24023]
[1746473852751,6.57287654,1819.8,1819.7,7.24023]
[1746473853051,5.47380654,1819.8,1819.7,7.24023]
[1746473863358,1.5916,1819.9,1819.8,1.09918]
[1746473863655,1.5916,1819.9,1819.8,2.79418]
[1746473864262,1.5916,1819.9,1819.8,6.52618]
[1746473868463,2.69072,1819.9,1819.8,6.52618]
[1746473868661,7.69072,1819.9,1819.8,3.732]
[1746473869167,1.09918,1819.8,1819.7,1.09924]
[1746473869364,6.81348,1819.8,1819.7,1.09924]
[1746473869767,1.0993,1819.7,1819.3,47.0807]
[1746473869969,1.09942,1819.5,1819.4,1.09942]
[1746473870266,1.09942,1819.4,1819.3,45.43142]
[1746473870455,4.41272,1819.4,1819.3,45.43142]
[1746473870658,4.41272,1819.4,1819.3,40.8]
[1746473872372,4.41272,1819.4,1819.3,41.89948]
[1746473872573,4.41272,1819.4,1819.3,40.8]
[1746473873365,1.09967,1819.0,1818.9,1.09968]
[1746473873765,6.73726,1819.1,1819.0,1.09967]
[1746473874068,6.73726,1819.1,1819.0,41.89967]
[1746473874578,6.73726,1819.1,1819.0,40.8]
[1746473874871,14.1696,1819.1,1818.9,3.732]
[1746473875172,1.09985,1818.7,1818.6,7.34661369]
[1746473875374,7.84065,1818.7,1818.6,48.14661369]
[1746473875981,9.41995,1818.7,1818.6,48.14661369]
[1746473877369,9.41995,1818.7,1818.6,7.34661369]
[1746473878080,1.09991,1818.6,1818.5,41.89996]
[1746473878277,3.52211,1818.6,1818.5,41.89996]
[1746473879176,3.52211,1818.6,1818.5,45.63196]
[1746473880075,3.51552653,1818.6,1818.5,45.63196]
[1746473882379,3.51552653,1818.6,1818.5,40.8]
[1746473882581,3.51552653,1818.6,1818.5,41.89997]
[1746473883075,3.51552653,1818.6,1818.5,40.8]
[1746473883573,1.09997,1818.5,1818.4,0.1]
[1746473883779,6.75567,1818.5,1818.4,0.1]
[1746473888787,3.54787,1818.5,1818.4,0.1]
[1746473889084,6.75567,1818.5,1818.4,0.1]
[1746473889287,6.75567,1818.5,1818.4,1.20003]
[1746473889691,7.84169,1818.7,1818.6,1.09984]
[1746473889887,1.09991,1818.6,1818.5,2.67397]
[1746473890089,2.70661,1818.6,1818.5,2.67397]
[1746473891289,2.70661,1818.6,1818.5,6.40597]
[1746473891480,3.2078,1818.7,1818.5,5.306]
[1746473891687,3.2078,1818.7,1818.6,3.52181]
[1746473894993,4.30765,1818.7,1818.6,3.52181]
[1746473895186,3.2078,1818.7,1818.6,3.52181]
[1746473895386,4.30765,1818.7,1818.6,3.52181]
[1746473895787,3.2078,1818.7,1818.6,3.52181]
[1746473896588,4.30765,1818.7,1818.6,3.52181]
[1746473897591,3.2078,1818.7,1818.6,3.52181]
[1746473897790,4.30765,1818.7,1818.6,3.52181]
[1746473899399,3.2078,1818.7,1818.6,3.52181]
[1746473900094,4.30765,1818.7,1818.6,3.52181]
[1746473900392,4.30765,1818.7,1818.6,4.36161]
[1746473900692,14.64412083,1818.7,1817.4,3.2078]
[1746473900993,65.5323,1818.9,1817.1,7.34661369]
[1746473900994,3.2078,1817.7,1817.5,41.5876]
[1746473901197,1.10039,1817.8,1817.5,45.3196]
[1746473901390,3.2078,1817.9,1817.7,1.10045]
[1746473901591,3.2078,1817.9,1817.8,1.10039]
[1746473902097,3.2078,1817.9,1817.8,4.83239]
[1746473902797,3.2078,1817.9,1817.8,5.64819]
[1746473903302,4.30813,1817.9,1817.8,5.64819]
[1746473903596,4.30813,1817.9,1817.8,3.732]
[1746473903999,9.30813,1817.9,1817.8,3.732]
[1746473904195,1.10051,1817.6,1817.5,41.5876]
[1746473904498,3.2078,1817.6,1817.5,42.68817]
[1746473904803,3.2078,1817.6,1817.5,44.26837]
[1746473905195,3.2078,1817.6,1817.5,48.00037]
[1746473905898,4.30823,1817.8,1817.6,1.10047]
[1746473906098,3.2078,1817.8,1817.7,2.68065]
[1746473906300,4.30819,1817.8,1817.7,1.5802]
[1746473906499,3.2078,1817.8,1817.7,2.68065]
[1746473907100,3.2078,1817.8,1817.7,6.41265]
[1746473907303,4.30819,1817.8,1817.7,6.41265]
[1746473907600,3.2078,1817.8,1817.7,6.41265]
[1746473908001,3.2078,1818.0,1817.9,1.10033]
[1746473908205,4.30807,1818.0,1817.9,4.83233]
[1746473910003,3.2078,1818.0,1817.9,4.83233]
[1746473910893,3.2078,1818.0,1817.9,6.54573]
[1746473911189,4.30807,1818.0,1817.9,6.54573]
[1746473911402,3.2078,1818.0,1817.9,6.54573]
[1746473911602,3.2078,1818.0,1817.9,7.36753]
[1746473911802,4.30807,1818.0,1817.9,7.36753]
[1746473912504,3.2078,1818.0,1817.9,7.36753]
[1746473913507,4.30807,1818.0,1817.9,7.36753]
[1746473913898,3.2078,1818.0,1817.9,7.36753]
[1746473915207,4.30807,1818.0,1817.9,7.36753]
[1746473919104,5.91257,1818.0,1817.9,7.36753]
[1746473921506,5.91257,1818.0,1817.9,5.4454]
[1746473921708,5.91257,1818.0,1817.9,4.83233]
[1746473922210,5.91257,1818.0,1817.9,3.732]
[1746473925606,10.91257,1818.0,1817.9,3.732]
[1746473925810,10.91257,1818.0,1817.9,2.62642]
[1746473926106,1.10051,1817.6,1817.5,41.90054]
[1746473926311,4.30831,1817.6,1817.5,41.90054]
[1746473926905,6.02551,1817.6,1817.5,41.90054]
[1746473927225,6.02551,1817.6,1817.5,47.29314]
[1746473927915,6.02551,1817.6,1817.5,3.732]
[1746473934917,6.02551,1817.6,1817.5,5.436]
[1746473936220,6.02551,1817.6,1817.5,3.732]
[1746473938320,6.02551,1817.6,1817.5,6.49007]
[1746473939220,4.30831,1817.6,1817.5,6.49007]
[1746473940011,4.30831,1817.6,1817.5,5.3895]
[1746473940314,5.89901,1817.6,1817.5,5.3895]
[1746473941225,5.89901,1817.6,1817.5,6.1717]
[1746473942916,3.2078,1817.6,1817.5,7.27227]
[1746473944428,4.30831,1817.6,1817.5,7.27227]
[1746473945522,3.2078,1817.6,1817.5,7.27227]
[1746473946425,4.30831,1817.6,1817.5,7.27227]
[1746473947725,3.2078,1817.6,1817.5,7.27227]
[1746473948225,7.30145179,1817.9,1817.8,1.10039]
[1746473948818,7.30145179,1817.9,1817.8,3.52509]
[1746473949120,8.40178179,1817.9,1817.8,7.25709]
[1746473949425,7.30145179,1817.9,1817.8,7.25709]
[1746473949927,5.96727,1818.1,1818.0,1.10027]
[1746473950126,5.96727,1818.1,1818.0,4.83227]
[1746473951225,5.96727,1818.1,1818.0,3.732]
[1746473951727,5.96727,1818.1,1818.0,6.51727]
[1746473954429,5.96727,1818.1,1818.0,5.417]
[1746473955127,5.96727,1818.1,1818.0,6.51727]
[1746473955427,5.96727,1818.1,1818.0,5.417]
[1746473955829,5.96727,1818.1,1818.0,6.51727]
[1746473958230,5.96727,1818.1,1818.0,5.417]
[1746473958423,5.96727,1818.1,1818.0,6.51727]
[1746473958831,4.30807,1818.1,1818.0,6.51727]
[1746473959529,5.98507,1818.1,1818.0,5.417]
[1746473960130,5.98507,1818.1,1818.0,6.51727]
[1746473960331,5.98507,1818.1,1818.0,5.417]
[1746473961031,5.98507,1818.1,1818.0,6.51727]
[1746473963528,5.98507,1818.1,1818.0,5.417]
[1746473964527,9.55407,1818.1,1818.0,3.732]
[1746473965231,4.30807,1818.1,1818.0,4.83227]
[1746473966746,4.30807,1818.1,1818.0,3.732]
[1746473967032,5.99447,1818.1,1818.0,3.732]
[1746473968535,10.99447,1818.1,1818.0,0.99806]
[1746473969134,1.10051,1817.6,1817.4,3.58913]
[1746473969334,1.10057,1817.5,1817.4,2.4885]
[1746473969528,2.80037,1817.5,1817.4,3.58913]
[1746473969832,2.80037,1817.5,1817.4,2.4885]
[1746473970032,2.80037,1817.5,1817.4,3.58913]
[1746473970233,2.80037,1817.5,1817.4,7.32113]
[1746473970939,4.30832,1817.6,1817.5,1.10057]
[1746473971233,3.2078,1817.6,1817.5,6.45007]
[1746473971737,4.30831,1817.6,1817.5,6.45007]
[1746473971937,3.2078,1817.6,1817.5,6.45007]
[1746473972138,4.30831,1817.6,1817.5,6.45007]
[1746473972834,3.2078,1817.6,1817.5,6.45007]
[1746473973043,3.2078,1817.6,1817.5,11.45007]
[1746473973635,8.40194179,1817.7,1817.6,1.10051]
[1746473973834,8.40194179,1817.7,1817.6,2.70571]
[1746473975847,4.75123108,1817.7,1817.6,2.70571]
[1746473979447,7.95903108,1817.7,1817.6,1.6052]
[1746473979642,7.95903108,1817.7,1817.6,2.70571]
[1746473982558,4.30829,1817.7,1817.6,2.70571]
[1746473984253,1.10051,1817.6,1817.5,3.732]
[1746473984463,9.43951,1817.6,1817.5,3.732]
[1746473985261,1.10069,1817.3,1817.2,43.55804]
[1746473985460,4.30849,1817.3,1817.2,43.55804]
[1746473985760,4.30849,1817.3,1817.2,42.4573]
[1746473985956,10.95967,1817.3,1816.7,8.44764369]
[1746473986156,10.95967,1817.3,1816.7,7.34661369]
[1746473986157,4.3088,1816.8,1816.7,7.34661369]
[1746473986370,7.8788,1816.8,1816.7,7.34661369]
[1746473986951,9.5212,1816.8,1816.7,7.34661369]
[1746473987156,9.5212,1816.8,1816.7,11.07861369]
[1746473987353,5.9512,1816.8,1816.7,11.07861369]
[1746473987559,5.1157,1816.8,1816.7,12.17967369]
[1746473987754,5.1157,1816.8,1816.7,14.67237369]
[1746473987955,6.8091,1816.8,1816.7,14.67237369]
[1746473988357,6.8091,1816.8,1816.7,13.57131369]
[1746473989063,6.8091,1816.8,1816.7,12.75371369]
[1746473989466,6.8091,1816.8,1816.7,13.85477369]
[1746473990366,10.45607594,1816.8,1816.7,6.50816]
[1746473990660,3.64697594,1816.8,1816.7,6.50816]
[1746473991563,4.74797594,1816.8,1816.7,6.50816]
[1746473991760,3.64697594,1816.8,1816.7,6.50816]
[1746473994257,2.6963,1816.9,1816.7,6.50816]
[1746473994462,2.6963,1816.9,1816.8,1.6038]
[1746473994661,2.6963,1816.9,1816.8,2.7048]
[1746473995167,2.6963,1816.9,1816.8,6.4368]
[1746473995470,1.5953,1816.9,1816.8,6.4368]
[1746473995669,4.0433,1817.0,1816.9,1.10094]
[1746473995971,3.2078,1817.0,1816.9,2.81714]
[1746473996262,3.2078,1817.0,1816.9,7.36524]
[1746473996468,5.91028,1817.0,1816.9,7.36524]
[1746473997669,4.8094,1817.0,1816.9,7.36524]
[1746473999472,5.91028,1817.0,1816.9,7.36524]
[1746474000271,4.8094,1817.0,1816.9,7.36524]
[1746474000468,5.91028,1817.0,1816.9,7.36524]
[1746474001071,4.8094,1817.0,1816.9,7.36524]
[1746474001375,5.91028,1817.0,1816.9,7.36524]
[1746474001559,5.91028,1817.0,1816.9,4.83294]
[1746474001973,5.91028,1817.0,1816.9,3.732]
[1746474002372,5.91028,1817.0,1816.9,4.83294]
[1746474002772,5.91028,1817.0,1816.9,3.732]
[1746474005072,5.91028,1817.0,1816.9,4.83294]